[Event "Titled Tuesday Blitz July 25 Early 2023"]
[White "Gubajdullin, Alexei"]
[Black "laimis61"]
[WhiteFideId "4141202"]
[WhiteElo "2705"]
[BlackElo "2295"]
[Result "1-0"]
[Round "2"]
[TimeControl "180+2"]
[Date "2023.07.25"]
[WhiteClock "0:01:09"]
[BlackClock "0:00:36"]
[Board "104"]

1. d4 {[%clk 0:02:59]}  d6 {[%clk 0:02:58]} 2. Nf3 {[%clk 0:02:58]}  Nf6 {[%clk 0:02:54]} 3. Bf4 {[%clk 0:02:58]}  g6 {[%clk 0:02:51]} 4. e3 {[%clk 0:02:57]}  Bg7 {[%clk 0:02:50]} 5. Be2 {[%clk 0:02:56]}  O-O {[%clk 0:02:50]} 6. O-O {[%clk 0:02:55]}  Nbd7 {[%clk 0:02:43]} 7. h3 {[%clk 0:02:55]}  b6 {[%clk 0:02:42]} 8. a4 {[%clk 0:02:53]}  a6 {[%clk 0:02:39]} 9. a5 {[%clk 0:02:53]}  b5 {[%clk 0:02:39]} 10. c4 {[%clk 0:02:51]}  bxc4 {[%clk 0:02:33]} 11. Bxc4 {[%clk 0:02:51]}  Bb7 {[%clk 0:02:33]} 12. Nc3 {[%clk 0:02:50]}  e6 {[%clk 0:02:17]} 13. b4 {[%clk 0:02:47]}  Qe7 {[%clk 0:02:09]} 14. b5 {[%clk 0:02:45]}  axb5 {[%clk 0:02:08]} 15. Nxb5 {[%clk 0:02:44]}  Rfc8 {[%clk 0:02:03]} 16. Qe2 {[%clk 0:02:29]}  e5 {[%clk 0:01:59]} 17. dxe5 {[%clk 0:02:25]}  dxe5 {[%clk 0:01:58]} 18. Bh2 {[%clk 0:02:25]}  Ne4 {[%clk 0:01:53]} 19. Rfc1 {[%clk 0:02:22]}  Ndc5 {[%clk 0:01:46]} 20. Nc3 {[%clk 0:02:07]}  Nxc3 {[%clk 0:01:33]} 21. Rxc3 {[%clk 0:02:07]}  Ne4 {[%clk 0:01:28]} 22. Rcc1 {[%clk 0:02:04]}  Ng5 {[%clk 0:01:28]} 23. Nxg5 {[%clk 0:01:40]}  Qxg5 {[%clk 0:01:27]} 24. e4 {[%clk 0:01:40]}  Rd8 {[%clk 0:01:20]} 25. a6 {[%clk 0:01:33]}  Bc8 {[%clk 0:01:18]} 26. Bd5 {[%clk 0:01:32]}  Ra7 {[%clk 0:01:14]} 27. h4 {[%clk 0:01:28]}  Qxh4 {[%clk 0:01:05]} 28. Qe3 {[%clk 0:01:24]}  Rxa6 {[%clk 0:01:03]} 29. Rxa6 {[%clk 0:01:23]}  Bxa6 {[%clk 0:01:02]} 30. Rxc7 {[%clk 0:01:24]}  Kh8 {[%clk 0:00:54]} 31. Qa7 {[%clk 0:01:19]}  Qh5 {[%clk 0:00:43]} 32. Qxa6 {[%clk 0:01:12]}  Rb8 {[%clk 0:00:37]} 33. Rc8+ {[%clk 0:01:08]}  Rxc8 {[%clk 0:00:36]} 34. Qxc8+ {[%clk 0:01:08]}  Bf8 {[%clk 0:00:36]} 35. Qxf8# {[%clk 0:01:09]} 1-0


[Site "https://www.chess.com"]

[Event "Titled Tuesday Blitz July 25 Early 2023"]
[White "Marek, Matyas"]
[Black "Doluhanova, Evgeniya"]
[WhiteFideId "335398"]
[BlackFideId "14112035"]
[WhiteElo "2704"]
[BlackElo "2268"]
[Result "1-0"]
[Round "2"]
[TimeControl "180+2"]
[Date "2023.07.25"]
[WhiteClock "0:00:48"]
[BlackClock "0:00:17"]
[Board "106"]

1. Nf3 {[%clk 0:03:00]}  Nf6 {[%clk 0:02:55]} 2. g3 {[%clk 0:03:01]}  e6 {[%clk 0:02:52]} 3. Bg2 {[%clk 0:03:02]}  d5 {[%clk 0:02:52]} 4. O-O {[%clk 0:03:03]}  b6 {[%clk 0:02:51]} 5. d3 {[%clk 0:03:04]}  Bb7 {[%clk 0:02:51]} 6. Nbd2 {[%clk 0:03:05]}  Nbd7 {[%clk 0:02:51]} 7. e4 {[%clk 0:03:05]}  Be7 {[%clk 0:02:51]} 8. e5 {[%clk 0:03:01]}  Ng4 {[%clk 0:02:50]} 9. Re1 {[%clk 0:03:00]}  h5 {[%clk 0:02:45]} 10. h3 {[%clk 0:03:00]}  Nh6 {[%clk 0:02:44]} 11. Nf1 {[%clk 0:02:53]}  c5 {[%clk 0:02:43]} 12. c3 {[%clk 0:02:50]}  Qc7 {[%clk 0:02:43]} 13. Bf4 {[%clk 0:02:40]}  O-O-O {[%clk 0:02:33]} 14. Qe2 {[%clk 0:02:34]}  Rdg8 {[%clk 0:02:29]} 15. h4 {[%clk 0:02:25]}  Nf5 {[%clk 0:02:26]} 16. Ne3 {[%clk 0:02:22]}  Nxe3 {[%clk 0:02:18]} 17. Qxe3 {[%clk 0:02:22]}  Nf8 {[%clk 0:02:14]} 18. d4 {[%clk 0:02:16]}  Ng6 {[%clk 0:02:13]} 19. Bg5 {[%clk 0:02:15]}  Bxg5 {[%clk 0:02:04]} 20. Qxg5 {[%clk 0:02:13]}  Qe7 {[%clk 0:02:03]} 21. dxc5 {[%clk 0:02:09]}  bxc5 {[%clk 0:02:00]} 22. Qe3 {[%clk 0:02:09]}  Kb8 {[%clk 0:01:58]} 23. b4 {[%clk 0:02:09]}  cxb4 {[%clk 0:01:45]} 24. cxb4 {[%clk 0:02:09]}  Rc8 {[%clk 0:01:45]} 25. Nd4 {[%clk 0:02:02]}  Qd7 {[%clk 0:01:43]} 26. b5 {[%clk 0:02:01]}  Ne7 {[%clk 0:01:42]} 27. a4 {[%clk 0:01:58]}  Rc7 {[%clk 0:01:36]} 28. a5 {[%clk 0:01:53]}  Rhc8 {[%clk 0:01:34]} 29. Rec1 {[%clk 0:01:36]}  Rxc1+ {[%clk 0:01:25]} 30. Rxc1 {[%clk 0:01:37]}  Rxc1+ {[%clk 0:01:24]} 31. Qxc1 {[%clk 0:01:38]}  Qc7 {[%clk 0:01:19]} 32. Qa3 {[%clk 0:01:26]}  a6 {[%clk 0:00:53]} 33. b6 {[%clk 0:01:21]}  Qd7 {[%clk 0:00:53]} 34. Bf1 {[%clk 0:01:13]}  g6 {[%clk 0:00:52]} 35. Qd6+ {[%clk 0:01:05]}  Kc8 {[%clk 0:00:43]} 36. Qc5+ {[%clk 0:01:05]}  Kb8 {[%clk 0:00:36]} 37. Bd3 {[%clk 0:01:01]}  Nc8 {[%clk 0:00:21]} 38. Bc2 {[%clk 0:00:54]}  Qd8 {[%clk 0:00:19]} 39. Ba4 {[%clk 0:00:51]}  Qh8 {[%clk 0:00:17]} 40. Qc7+ {[%clk 0:00:51]}  Ka8 {[%clk 0:00:17]} 41. Bc6 {[%clk 0:00:48]} 1-0


[Site "https://www.chess.com"]

[Event "Titled Tuesday Blitz July 25 Early 2023"]
[White "Djokic, Mihailo"]
[Black "Xavier_mompel"]
[WhiteFideId "976440"]
[WhiteElo "2702"]
[BlackElo "2265"]
[Result "1-0"]
[Round "2"]
[TimeControl "180+2"]
[Date "2023.07.25"]
[WhiteClock "0:02:07"]
[BlackClock "0:00:16"]
[Board "107"]

1. e4 {[%clk 0:03:00]}  c5 {[%clk 0:02:59]} 2. Nf3 {[%clk 0:02:59]}  e6 {[%clk 0:02:59]} 3. d4 {[%clk 0:03:00]}  cxd4 {[%clk 0:03:00]} 4. Nxd4 {[%clk 0:02:59]}  Nc6 {[%clk 0:03:00]} 5. Nc3 {[%clk 0:02:59]}  Qc7 {[%clk 0:03:00]} 6. Be2 {[%clk 0:03:00]}  a6 {[%clk 0:02:59]} 7. O-O {[%clk 0:03:00]}  Nf6 {[%clk 0:02:58]} 8. Be3 {[%clk 0:03:00]}  Be7 {[%clk 0:02:58]} 9. f4 {[%clk 0:03:00]}  d6 {[%clk 0:02:58]} 10. Kh1 {[%clk 0:03:01]}  O-O {[%clk 0:02:54]} 11. Qe1 {[%clk 0:03:02]}  Nxd4 {[%clk 0:02:44]} 12. Bxd4 {[%clk 0:03:03]}  e5 {[%clk 0:02:43]} 13. fxe5 {[%clk 0:03:03]}  dxe5 {[%clk 0:02:44]} 14. Qg3 {[%clk 0:03:03]}  Nd7 {[%clk 0:02:25]} 15. Nd5 {[%clk 0:03:02]}  Qd6 {[%clk 0:02:25]} 16. Bc3 {[%clk 0:03:01]}  a5 {[%clk 0:02:11]} 17. Rad1 {[%clk 0:03:01]}  Qc5 {[%clk 0:02:01]} 18. b4 {[%clk 0:03:01]}  Qd6 {[%clk 0:01:51]} 19. bxa5 {[%clk 0:02:59]}  Qa3 {[%clk 0:01:03]} 20. Nxe7+ {[%clk 0:02:21]}  Qxe7 {[%clk 0:01:04]} 21. Bb5 {[%clk 0:02:20]}  f6 {[%clk 0:00:50]} 22. a4 {[%clk 0:02:12]}  Nc5 {[%clk 0:00:38]} 23. Bb4 {[%clk 0:02:12]}  Qc7 {[%clk 0:00:39]} 24. Qc3 {[%clk 0:02:11]}  Ne6 {[%clk 0:00:24]} 25. Qxc7 {[%clk 0:02:11]}  Nxc7 {[%clk 0:00:25]} 26. Bxf8 {[%clk 0:02:12]}  Kxf8 {[%clk 0:00:26]} 27. Rd8+ {[%clk 0:02:10]}  Ke7 {[%clk 0:00:25]} 28. Rfd1 {[%clk 0:02:10]}  Ne6 {[%clk 0:00:24]} 29. Rh8 {[%clk 0:02:07]}  h6 {[%clk 0:00:19]} 30. g3 {[%clk 0:02:07]}  Kf7 {[%clk 0:00:17]} 31. Bd7 {[%clk 0:02:06]}  Bxd7 {[%clk 0:00:15]} 32. Rxd7+ {[%clk 0:02:07]}  Kg6 {[%clk 0:00:16]} 33. Rxa8 {[%clk 0:02:07]} 1-0


[Site "https://www.chess.com"]

[Event "Titled Tuesday Blitz July 25 Early 2023"]
[White "Gardezi, Arsal"]
[Black "Panesar Vedant"]
[WhiteFideId "30949521"]
[BlackFideId "35033018"]
[WhiteElo "2251"]
[BlackElo "2700"]
[Result "0-1"]
[Round "2"]
[TimeControl "180+2"]
[Date "2023.07.25"]
[WhiteClock "0:01:19"]
[BlackClock "0:00:32"]
[Board "108"]

1. e4 {[%clk 0:03:00]}  e5 {[%clk 0:02:55]} 2. Nf3 {[%clk 0:03:00]}  Nf6 {[%clk 0:02:55]} 3. Nxe5 {[%clk 0:02:58]}  d6 {[%clk 0:02:55]} 4. Nf3 {[%clk 0:02:58]}  Nxe4 {[%clk 0:02:55]} 5. Nc3 {[%clk 0:02:59]}  Nxc3 {[%clk 0:02:56]} 6. dxc3 {[%clk 0:02:59]}  Be7 {[%clk 0:02:57]} 7. Bd3 {[%clk 0:02:59]}  O-O {[%clk 0:02:56]} 8. Bf4 {[%clk 0:02:56]}  Nd7 {[%clk 0:02:52]} 9. Qd2 {[%clk 0:02:55]}  Nc5 {[%clk 0:02:53]} 10. O-O {[%clk 0:02:55]}  Nxd3 {[%clk 0:02:40]} 11. Qxd3 {[%clk 0:02:55]}  Bf6 {[%clk 0:02:37]} 12. Rfe1 {[%clk 0:02:53]}  Be6 {[%clk 0:02:31]} 13. h3 {[%clk 0:02:53]}  Qd7 {[%clk 0:02:30]} 14. Nd2 {[%clk 0:02:52]}  Bf5 {[%clk 0:02:28]} 15. Ne4 {[%clk 0:02:49]}  Bxe4 {[%clk 0:02:13]} 16. Qxe4 {[%clk 0:02:48]}  d5 {[%clk 0:02:14]} 17. Qf3 {[%clk 0:02:33]}  c6 {[%clk 0:02:11]} 18. Rad1 {[%clk 0:02:31]}  Qf5 {[%clk 0:02:09]} 19. Rd3 {[%clk 0:02:17]}  Rae8 {[%clk 0:01:47]} 20. Bd2 {[%clk 0:02:13]}  Rxe1+ {[%clk 0:01:34]} 21. Bxe1 {[%clk 0:02:13]}  Qxf3 {[%clk 0:01:35]} 22. Rxf3 {[%clk 0:02:13]}  Re8 {[%clk 0:01:28]} 23. Kf1 {[%clk 0:02:13]}  Bg5 {[%clk 0:01:26]} 24. Rd3 {[%clk 0:02:09]}  Bd8 {[%clk 0:01:18]} 25. Bd2 {[%clk 0:02:08]}  Bb6 {[%clk 0:01:19]} 26. Rg3 {[%clk 0:01:58]}  f6 {[%clk 0:01:15]} 27. Rg4 {[%clk 0:01:52]}  Kf7 {[%clk 0:01:13]} 28. Rh4 {[%clk 0:01:48]}  h6 {[%clk 0:01:02]} 29. Rf4 {[%clk 0:01:43]}  Re4 {[%clk 0:01:01]} 30. Rxe4 {[%clk 0:01:40]}  dxe4 {[%clk 0:01:02]} 31. Ke2 {[%clk 0:01:41]}  Ke6 {[%clk 0:01:00]} 32. Be3 {[%clk 0:01:41]}  Bxe3 {[%clk 0:00:53]} 33. Kxe3 {[%clk 0:01:42]}  Ke5 {[%clk 0:00:54]} 34. c4 {[%clk 0:01:40]}  f5 {[%clk 0:00:51]} 35. g3 {[%clk 0:01:36]}  g5 {[%clk 0:00:50]} 36. c3 {[%clk 0:01:29]}  f4+ {[%clk 0:00:47]} 37. gxf4+ {[%clk 0:01:22]}  gxf4+ {[%clk 0:00:47]} 38. Ke2 {[%clk 0:01:23]}  Kf5 {[%clk 0:00:45]} 39. b4 {[%clk 0:01:21]}  Kg5 {[%clk 0:00:34]} 40. b5 {[%clk 0:01:21]}  c5 {[%clk 0:00:34]} 41. a4 {[%clk 0:01:21]}  Kh4 {[%clk 0:00:32]} 42. f3 {[%clk 0:01:19]} 0-1


[Site "https://www.chess.com"]

[Event "Titled Tuesday Blitz July 25 Early 2023"]
[White "Sankalan Shah"]
[Black "Oleksiyenko, Mykhaylo"]
[WhiteFideId "25600362"]
[BlackFideId "4152417"]
[WhiteElo "2197"]
[BlackElo "2697"]
[Result "1-0"]
[Round "2"]
[TimeControl "180+2"]
[Date "2023.07.25"]
[WhiteClock "0:00:20"]
[BlackClock "0:00:29"]
[Board "109"]

1. d4 {[%clk 0:03:00]}  d5 {[%clk 0:02:59]} 2. c4 {[%clk 0:02:59]}  e6 {[%clk 0:02:59]} 3. Nf3 {[%clk 0:02:58]}  Nf6 {[%clk 0:02:59]} 4. Nc3 {[%clk 0:02:57]}  Nbd7 {[%clk 0:02:59]} 5. Bf4 {[%clk 0:02:47]}  dxc4 {[%clk 0:02:59]} 6. e3 {[%clk 0:02:43]}  Bd6 {[%clk 0:02:58]} 7. Bxd6 {[%clk 0:02:32]}  cxd6 {[%clk 0:02:59]} 8. Bxc4 {[%clk 0:02:32]}  Nb6 {[%clk 0:03:00]} 9. Bd3 {[%clk 0:02:31]}  Nbd5 {[%clk 0:03:00]} 10. O-O {[%clk 0:02:26]}  O-O {[%clk 0:02:44]} 11. e4 {[%clk 0:02:23]}  Nxc3 {[%clk 0:02:38]} 12. bxc3 {[%clk 0:02:24]}  Qc7 {[%clk 0:02:37]} 13. e5 {[%clk 0:02:15]}  dxe5 {[%clk 0:02:32]} 14. dxe5 {[%clk 0:02:13]}  Nd5 {[%clk 0:02:20]} 15. Bxh7+ {[%clk 0:01:58]}  Kxh7 {[%clk 0:02:21]} 16. Ng5+ {[%clk 0:01:58]}  Kg8 {[%clk 0:01:27]} 17. Qh5 {[%clk 0:01:44]}  Rd8 {[%clk 0:01:27]} 18. c4 {[%clk 0:00:58]}  Nf4 {[%clk 0:01:09]} 19. Qh7+ {[%clk 0:00:54]}  Kf8 {[%clk 0:01:09]} 20. Qh8+ {[%clk 0:00:55]}  Ke7 {[%clk 0:01:10]} 21. Qxg7 {[%clk 0:00:53]}  Ne2+ {[%clk 0:01:03]} 22. Kh1 {[%clk 0:00:53]}  Rf8 {[%clk 0:01:04]} 23. Rad1 {[%clk 0:00:37]}  Bd7 {[%clk 0:00:59]} 24. Qf6+ {[%clk 0:00:36]}  Ke8 {[%clk 0:00:59]} 25. Ne4 {[%clk 0:00:31]}  Ba4 {[%clk 0:00:34]} 26. Nd6+ {[%clk 0:00:25]}  Kd7 {[%clk 0:00:34]} 27. Nb5+ {[%clk 0:00:22]}  Bxd1 {[%clk 0:00:34]} 28. Nxc7 {[%clk 0:00:22]}  Kxc7 {[%clk 0:00:31]} 29. Rxd1 {[%clk 0:00:21]}  Rae8 {[%clk 0:00:29]} 30. Qf3 {[%clk 0:00:20]} 1-0


[Site "https://www.chess.com"]

[Event "Titled Tuesday Blitz July 25 Early 2023"]
[White "Gorovets, Andrey"]
[Black "Luxama, Jacques Muller"]
[WhiteFideId "13504037"]
[BlackFideId "11900113"]
[WhiteElo "2694"]
[BlackElo "2178"]
[Result "0-1"]
[Round "2"]
[TimeControl "180+2"]
[Date "2023.07.25"]
[WhiteClock "0:00:01"]
[BlackClock "0:00:52"]
[Board "110"]

1. Nf3 {[%clk 0:02:57]}  Nf6 {[%clk 0:02:58]} 2. c4 {[%clk 0:02:57]}  g6 {[%clk 0:02:59]} 3. d4 {[%clk 0:02:57]}  Bg7 {[%clk 0:03:00]} 4. g3 {[%clk 0:02:57]}  O-O {[%clk 0:03:00]} 5. Bg2 {[%clk 0:02:58]}  c6 {[%clk 0:03:00]} 6. O-O {[%clk 0:02:57]}  d5 {[%clk 0:03:00]} 7. Qb3 {[%clk 0:02:58]}  dxc4 {[%clk 0:02:59]} 8. Qxc4 {[%clk 0:02:59]}  Nbd7 {[%clk 0:02:58]} 9. e3 {[%clk 0:02:55]}  Nb6 {[%clk 0:02:58]} 10. Qe2 {[%clk 0:02:55]}  Bf5 {[%clk 0:02:50]} 11. Nc3 {[%clk 0:02:46]}  Ne4 {[%clk 0:02:49]} 12. Nd2 {[%clk 0:02:25]}  Nxd2 {[%clk 0:02:46]} 13. Bxd2 {[%clk 0:02:25]}  Be6 {[%clk 0:02:46]} 14. Rfd1 {[%clk 0:02:23]}  Bc4 {[%clk 0:02:40]} 15. Qe1 {[%clk 0:02:21]}  Qe8 {[%clk 0:02:36]} 16. b3 {[%clk 0:02:14]}  Be6 {[%clk 0:02:35]} 17. Ne4 {[%clk 0:02:14]}  Bg4 {[%clk 0:02:33]} 18. f3 {[%clk 0:02:13]}  Bc8 {[%clk 0:02:32]} 19. Rac1 {[%clk 0:02:02]}  e5 {[%clk 0:02:32]} 20. Bb4 {[%clk 0:02:02]}  exd4 {[%clk 0:02:28]} 21. Bxf8 {[%clk 0:01:59]}  Qxf8 {[%clk 0:02:29]} 22. exd4 {[%clk 0:01:59]}  Nd5 {[%clk 0:02:27]} 23. Nc5 {[%clk 0:01:43]}  b6 {[%clk 0:02:22]} 24. Ne4 {[%clk 0:01:43]}  Bd7 {[%clk 0:02:21]} 25. Qd2 {[%clk 0:01:40]}  Rd8 {[%clk 0:02:19]} 26. f4 {[%clk 0:01:36]}  Bg4 {[%clk 0:02:08]} 27. Re1 {[%clk 0:01:34]}  Nb4 {[%clk 0:02:04]} 28. Rc4 {[%clk 0:00:51]}  c5 {[%clk 0:01:58]} 29. Nf2 {[%clk 0:00:31]}  Be6 {[%clk 0:01:39]} 30. d5 {[%clk 0:00:24]}  Nxd5 {[%clk 0:01:37]} 31. Rxe6 {[%clk 0:00:14]}  fxe6 {[%clk 0:01:37]} 32. Qe2 {[%clk 0:00:13]}  Qf7 {[%clk 0:01:18]} 33. Bh3 {[%clk 0:00:13]}  Re8 {[%clk 0:01:11]} 34. Kg2 {[%clk 0:00:09]}  Bd4 {[%clk 0:01:09]} 35. Ng4 {[%clk 0:00:07]}  Qg7 {[%clk 0:01:07]} 36. Rc1 {[%clk 0:00:04]}  h5 {[%clk 0:01:05]} 37. Nf2 {[%clk 0:00:04]}  Ne3+ {[%clk 0:01:03]} 38. Kg1 {[%clk 0:00:04]}  Qf6 {[%clk 0:01:03]} 39. Bg2 {[%clk 0:00:02]}  e5 {[%clk 0:01:01]} 40. fxe5 {[%clk 0:00:02]}  Rxe5 {[%clk 0:00:59]} 41. Kh1 {[%clk 0:00:01]}  Nxg2 {[%clk 0:00:57]} 42. Ne4 {[%clk 0:00:01]}  Qe7 {[%clk 0:00:52]} 0-1


[Site "https://www.chess.com"]

[Event "Titled Tuesday Blitz July 25 Early 2023"]
[White "Larina, Maria"]
[Black "Koshulyan, Egor A."]
[WhiteFideId "24113182"]
[BlackFideId "24237000"]
[WhiteElo "2119"]
[BlackElo "2680"]
[Result "0-1"]
[Round "2"]
[TimeControl "180+2"]
[Date "2023.07.25"]
[WhiteClock "0:00:01"]
[BlackClock "0:00:56"]
[Board "111"]

1. e4 {[%clk 0:03:00]}  c5 {[%clk 0:02:59]} 2. Nc3 {[%clk 0:03:00]}  Nc6 {[%clk 0:02:59]} 3. g3 {[%clk 0:03:00]}  g6 {[%clk 0:03:00]} 4. Bg2 {[%clk 0:03:01]}  Bg7 {[%clk 0:03:00]} 5. d3 {[%clk 0:03:02]}  d6 {[%clk 0:02:59]} 6. Be3 {[%clk 0:03:02]}  Rb8 {[%clk 0:02:59]} 7. Qd2 {[%clk 0:03:02]}  b5 {[%clk 0:02:59]} 8. Nd1 {[%clk 0:03:02]}  e6 {[%clk 0:02:56]} 9. Ne2 {[%clk 0:02:58]}  Nge7 {[%clk 0:02:54]} 10. Bh6 {[%clk 0:02:56]}  O-O {[%clk 0:02:54]} 11. h4 {[%clk 0:02:53]}  f5 {[%clk 0:02:48]} 12. h5 {[%clk 0:02:36]}  Rf7 {[%clk 0:02:45]} 13. hxg6 {[%clk 0:02:34]}  hxg6 {[%clk 0:02:46]} 14. Bxg7 {[%clk 0:02:31]}  Rxg7 {[%clk 0:02:47]} 15. Qh6 {[%clk 0:02:30]}  Kf7 {[%clk 0:02:42]} 16. Ne3 {[%clk 0:02:16]}  Ne5 {[%clk 0:02:34]} 17. f4 {[%clk 0:02:03]}  Ng8 {[%clk 0:02:29]} 18. Qh3 {[%clk 0:01:54]}  Nd7 {[%clk 0:02:26]} 19. exf5 {[%clk 0:01:51]}  exf5 {[%clk 0:02:27]} 20. Bd5+ {[%clk 0:01:50]}  Kf8 {[%clk 0:02:27]} 21. O-O-O {[%clk 0:01:39]}  Ndf6 {[%clk 0:02:26]} 22. Bf3 {[%clk 0:01:30]}  Be6 {[%clk 0:02:25]} 23. g4 {[%clk 0:01:15]}  fxg4 {[%clk 0:02:13]} 24. Nxg4 {[%clk 0:00:56]}  Nh5 {[%clk 0:02:00]} 25. Qg2 {[%clk 0:00:40]}  Qd7 {[%clk 0:01:45]} 26. Rdg1 {[%clk 0:00:30]}  Qf7 {[%clk 0:01:40]} 27. Rf1 {[%clk 0:00:16]}  Ke7 {[%clk 0:01:23]} 28. a3 {[%clk 0:00:08]}  b4 {[%clk 0:01:11]} 29. a4 {[%clk 0:00:07]}  Kd7 {[%clk 0:01:05]} 30. Kb1 {[%clk 0:00:05]}  Ne7 {[%clk 0:01:05]} 31. Be4 {[%clk 0:00:04]}  a5 {[%clk 0:01:01]} 32. Ng3 {[%clk 0:00:03]}  Bxg4 {[%clk 0:01:01]} 33. Nxh5 {[%clk 0:00:02]}  Bxh5 {[%clk 0:01:02]} 34. Qh3+ {[%clk 0:00:01]}  Kc7 {[%clk 0:01:02]} 35. f5 {[%clk 0:00:01]}  Qe8 {[%clk 0:00:58]} 36. f6 {[%clk 0:00:01]}  Rf7 {[%clk 0:00:56]} 37. fxe7 {[%clk 0:00:01]}  Rxe7 {[%clk 0:00:56]} 0-1


[Site "https://www.chess.com"]

[Event "Titled Tuesday Blitz July 25 Early 2023"]
[White "Antal, Gergely"]
[Black "Saim, Mohamed Ilias"]
[WhiteFideId "717312"]
[BlackFideId "7900465"]
[WhiteElo "2678"]
[BlackElo "1928"]
[Result "1-0"]
[Round "2"]
[TimeControl "180+2"]
[Date "2023.07.25"]
[WhiteClock "0:00:15"]
[BlackClock "0:00:01"]
[Board "113"]

1. b3 {[%clk 0:03:00]}  f5 {[%clk 0:02:57]} 2. Bb2 {[%clk 0:03:01]}  b6 {[%clk 0:02:57]} 3. Nf3 {[%clk 0:02:56]}  Bb7 {[%clk 0:02:57]} 4. d3 {[%clk 0:02:57]}  d5 {[%clk 0:02:49]} 5. Nbd2 {[%clk 0:02:56]}  Nf6 {[%clk 0:02:49]} 6. h3 {[%clk 0:02:54]}  Nbd7 {[%clk 0:02:47]} 7. g4 {[%clk 0:02:53]}  e6 {[%clk 0:02:37]} 8. Bg2 {[%clk 0:02:36]}  Qb8 {[%clk 0:02:34]} 9. Ng5 {[%clk 0:02:26]}  Nc5 {[%clk 0:02:14]} 10. b4 {[%clk 0:02:10]}  h6 {[%clk 0:02:11]} 11. bxc5 {[%clk 0:02:08]}  hxg5 {[%clk 0:02:11]} 12. gxf5 {[%clk 0:02:06]}  exf5 {[%clk 0:02:05]} 13. cxb6 {[%clk 0:02:06]}  axb6 {[%clk 0:02:03]} 14. Nf3 {[%clk 0:01:42]}  g4 {[%clk 0:01:49]} 15. Ne5 {[%clk 0:01:18]}  gxh3 {[%clk 0:01:36]} 16. Rxh3 {[%clk 0:01:18]}  Rxh3 {[%clk 0:01:35]} 17. Bxh3 {[%clk 0:01:19]}  Bb4+ {[%clk 0:01:10]} 18. Kf1 {[%clk 0:01:19]}  Ng4 {[%clk 0:00:57]} 19. Nxg4 {[%clk 0:01:14]}  fxg4 {[%clk 0:00:57]} 20. Bxg4 {[%clk 0:01:15]}  c5 {[%clk 0:00:54]} 21. Qc1 {[%clk 0:00:48]}  Qh2 {[%clk 0:00:28]} 22. Qe3+ {[%clk 0:00:48]}  Kf8 {[%clk 0:00:24]} 23. Qf3+ {[%clk 0:00:23]}  Kg8 {[%clk 0:00:15]} 24. Qh3 {[%clk 0:00:17]}  Qxh3+ {[%clk 0:00:13]} 25. Bxh3 {[%clk 0:00:17]}  d4 {[%clk 0:00:11]} 26. a3 {[%clk 0:00:17]}  Ba5 {[%clk 0:00:11]} 27. Rb1 {[%clk 0:00:17]}  Rf8 {[%clk 0:00:09]} 28. Bc1 {[%clk 0:00:16]}  Bc8 {[%clk 0:00:06]} 29. Bxc8 {[%clk 0:00:16]}  Rxc8 {[%clk 0:00:07]} 30. Bf4 {[%clk 0:00:15]}  Kf7 {[%clk 0:00:05]} 31. Be5 {[%clk 0:00:16]}  g6 {[%clk 0:00:04]} 32. Kg2 {[%clk 0:00:16]}  Ke6 {[%clk 0:00:04]} 33. f4 {[%clk 0:00:16]}  g5 {[%clk 0:00:04]} 34. Kf3 {[%clk 0:00:15]}  gxf4 {[%clk 0:00:04]} 35. Bxf4 {[%clk 0:00:16]}  Rf8 {[%clk 0:00:04]} 36. Ke4 {[%clk 0:00:15]}  Re8 {[%clk 0:00:04]} 37. Rh1 {[%clk 0:00:15]}  Kd7+ {[%clk 0:00:02]} 38. Kf3 {[%clk 0:00:16]}  Kc6 {[%clk 0:00:02]} 39. a4 {[%clk 0:00:16]}  Ra8 {[%clk 0:00:01]} 40. Rh6+ {[%clk 0:00:15]} 1-0


[Site "https://www.chess.com"]

[Event "Titled Tuesday Blitz July 25 Early 2023"]
[White "Weetik, Vjacheslav"]
[Black "Navyblue1"]
[WhiteFideId "4153472"]
[WhiteElo "2676"]
[BlackElo "1921"]
[Result "1-0"]
[Round "2"]
[TimeControl "180+2"]
[Date "2023.07.25"]
[WhiteClock "0:00:57"]
[BlackClock "0:00:17"]
[Board "114"]

1. d4 {[%clk 0:02:58]}  Nf6 {[%clk 0:02:56]} 2. c4 {[%clk 0:02:58]}  g6 {[%clk 0:02:55]} 3. Nc3 {[%clk 0:02:58]}  Bg7 {[%clk 0:02:55]} 4. e4 {[%clk 0:02:58]}  d6 {[%clk 0:02:56]} 5. Nf3 {[%clk 0:02:59]}  O-O {[%clk 0:02:56]} 6. Be2 {[%clk 0:02:59]}  Qe8 {[%clk 0:02:57]} 7. O-O {[%clk 0:02:57]}  e5 {[%clk 0:02:57]} 8. dxe5 {[%clk 0:02:58]}  dxe5 {[%clk 0:02:57]} 9. b4 {[%clk 0:02:58]}  Bg4 {[%clk 0:02:56]} 10. Ba3 {[%clk 0:02:53]}  Bxf3 {[%clk 0:02:53]} 11. Bxf3 {[%clk 0:02:53]}  Qe6 {[%clk 0:02:46]} 12. Nd5 {[%clk 0:02:49]}  Nxd5 {[%clk 0:01:55]} 13. cxd5 {[%clk 0:02:48]}  Qa6 {[%clk 0:01:53]} 14. Qb3 {[%clk 0:02:46]}  Qb5 {[%clk 0:01:48]} 15. Rac1 {[%clk 0:02:25]}  Na6 {[%clk 0:01:37]} 16. Rfe1 {[%clk 0:02:21]}  Rfc8 {[%clk 0:01:30]} 17. Bg4 {[%clk 0:02:18]}  Rd8 {[%clk 0:01:15]} 18. Be2 {[%clk 0:02:17]}  Qb6 {[%clk 0:01:15]} 19. b5 {[%clk 0:02:03]}  Nb8 {[%clk 0:01:14]} 20. Bc5 {[%clk 0:01:56]}  Qa5 {[%clk 0:01:14]} 21. a4 {[%clk 0:01:52]}  c6 {[%clk 0:01:08]} 22. dxc6 {[%clk 0:01:18]}  bxc6 {[%clk 0:01:08]} 23. Bc4 {[%clk 0:01:18]}  Rd7 {[%clk 0:00:33]} 24. Red1 {[%clk 0:01:05]}  Rxd1+ {[%clk 0:00:20]} 25. Rxd1 {[%clk 0:01:06]}  Qc7 {[%clk 0:00:20]} 26. Bxf7+ {[%clk 0:00:58]}  Qxf7 {[%clk 0:00:19]} 27. Rd8+ {[%clk 0:00:58]}  Bf8 {[%clk 0:00:19]} 28. Rxf8+ {[%clk 0:00:58]}  Kg7 {[%clk 0:00:17]} 29. Qxf7+ {[%clk 0:00:59]}  Kh6 {[%clk 0:00:17]} 30. Be3+ {[%clk 0:00:57]} 1-0


[Site "https://www.chess.com"]